[Event "*** Titled Tuesday Blitz"]
[Site "Chess.com"]
[Date "2020.04.07"]
[Round "9"]
[White "Ovsiannikov_Maxim"]
[Black "Enriquack"]
[Result "1-0"]
[WhiteElo "2231"]
[BlackElo "2305"]
[TimeControl "180+1"]
[EndTime "14:43:52 PDT"]
[Termination "Ovsiannikov_Maxim won by resignation"]

1. d4 {[%clk 0:03:00.9]} 1... Nf6 {[%clk 0:02:59.7]} 2. Bg5 {[%clk 0:03:00.5]}
2... c5 {[%clk 0:02:59.2]} 3. d5 {[%clk 0:02:59.1]} 3... Ne4 {[%clk 0:02:55.5]}
4. Bh4 {[%clk 0:02:58.3]} 4... Qb6 {[%clk 0:02:50.4]} 5. Qc1 {[%clk 0:02:49.2]}
5... g6 {[%clk 0:02:45.8]} 6. f3 {[%clk 0:02:49]} 6... Nf6 {[%clk 0:02:43.4]} 7.
e4 {[%clk 0:02:49.3]} 7... Bg7 {[%clk 0:02:43.2]} 8. Nc3 {[%clk 0:02:49.1]} 8...
d6 {[%clk 0:02:42.2]} 9. Bd3 {[%clk 0:02:46.3]} 9... Nbd7 {[%clk 0:02:37.9]} 10.
Nge2 {[%clk 0:02:44.9]} 10... O-O {[%clk 0:02:34]} 11. f4 {[%clk 0:02:43.5]}
11... c4 {[%clk 0:02:06.1]} 12. Bxc4 {[%clk 0:02:40.8]} 12... Ng4 {[%clk
0:02:06.2]} 13. h3 {[%clk 0:02:34.7]} 13... Ne3 {[%clk 0:02:05.8]} 14. Bf2
{[%clk 0:02:24.7]} 14... Nxg2+ {[%clk 0:01:52.7]} 15. Kf1 {[%clk 0:02:24.6]}
15... Qb4 {[%clk 0:01:40.7]} 16. Bb3 {[%clk 0:02:15]} 16... f5 {[%clk
0:01:20.3]} 17. a3 {[%clk 0:02:09.9]} 17... Qa5 {[%clk 0:01:18]} 18. Kxg2 {[%clk
0:02:09]} 18... fxe4 {[%clk 0:01:18.3]} 19. Nxe4 {[%clk 0:02:04.6]} 19... Nf6
{[%clk 0:01:15.9]} 20. Nxf6+ {[%clk 0:02:04]} 20... Rxf6 {[%clk 0:01:15.9]} 21.
Bd4 {[%clk 0:02:02.1]} 21... Rf5 {[%clk 0:01:13.7]} 22. Bxg7 {[%clk 0:02:01.9]}
22... Kxg7 {[%clk 0:01:12.8]} 23. Nd4 {[%clk 0:02:00]} 23... Rh5 {[%clk
0:01:11.9]} 24. Qe3 {[%clk 0:01:55.5]} 1-0

[Event "*** Titled Tuesday Blitz"]
[Site "Chess.com"]
[Date "2020.04.07"]
[Round "9"]
[White "MisiekZielony"]
[Black "Leo_C"]
[Result "1-0"]
[WhiteElo "2156"]
[BlackElo "2290"]
[TimeControl "180+1"]
[EndTime "14:43:53 PDT"]
[Termination "MisiekZielony won by resignation"]

1. c4 {[%clk 0:03:00.1]} 1... c6 {[%clk 0:02:57.9]} 2. Nc3 {[%clk 0:02:59.8]}
2... d5 {[%clk 0:02:58.1]} 3. cxd5 {[%clk 0:03:00]} 3... cxd5 {[%clk 0:02:58]}
4. d4 {[%clk 0:03:00.2]} 4... Nc6 {[%clk 0:02:57.3]} 5. Nf3 {[%clk 0:03:00.3]}
5... Nf6 {[%clk 0:02:56.3]} 6. Bf4 {[%clk 0:03:00.1]} 6... a6 {[%clk 0:02:56.4]}
7. Rc1 {[%clk 0:02:59.1]} 7... Bf5 {[%clk 0:02:55.1]} 8. e3 {[%clk 0:02:58.5]}
8... e6 {[%clk 0:02:54.7]} 9. Qb3 {[%clk 0:02:47.6]} 9... Na5 {[%clk 0:02:43.4]}
10. Qa4+ {[%clk 0:02:45.8]} 10... Nd7 {[%clk 0:02:33.4]} 11. Ne5 {[%clk
0:02:36.1]} 11... Nc6 {[%clk 0:02:22.1]} 12. Nxc6 {[%clk 0:02:30.8]} 12... bxc6
{[%clk 0:02:22.2]} 13. Qxc6 {[%clk 0:02:30.5]} 13... Bb4 {[%clk 0:02:20.1]} 14.
a3 {[%clk 0:02:16.8]} 14... Bxc3+ {[%clk 0:02:13.1]} 15. Rxc3 {[%clk 0:02:16.7]}
15... O-O {[%clk 0:02:10.5]} 16. Bc7 {[%clk 0:02:09.6]} 16... Qe8 {[%clk
0:02:04.8]} 17. Be2 {[%clk 0:01:53.9]} 17... Rc8 {[%clk 0:02:04.1]} 18. Bxa6
{[%clk 0:01:50.1]} 18... Nb8 {[%clk 0:01:59.4]} 19. Qxe8 {[%clk 0:01:48.8]}
19... Rcxe8 {[%clk 0:01:59.2]} 20. Bb5 {[%clk 0:01:40.5]} 20... Rc8 {[%clk
0:01:56.9]} 21. Kd2 {[%clk 0:01:40.3]} 21... h6 {[%clk 0:01:50.3]} 22. Rhc1
{[%clk 0:01:39.5]} 22... Kh7 {[%clk 0:01:48.7]} 23. a4 {[%clk 0:01:37.4]} 23...
Kg6 {[%clk 0:01:47.2]} 24. a5 {[%clk 0:01:37.2]} 1-0

[Event "*** Titled Tuesday Blitz"]
[Site "Chess.com"]
[Date "2020.04.07"]
[Round "9"]
[White "PotapovaM"]
[Black "fmshawnrl123"]
[Result "1/2-1/2"]
[WhiteElo "2550"]
[BlackElo "2715"]
[TimeControl "180+1"]
[EndTime "14:43:58 PDT"]
[Termination "Game drawn by agreement"]

1. d4 {[%clk 0:03:00.9]} 1... Nf6 {[%clk 0:02:56.3]} 2. c4 {[%clk 0:03:01.4]}
2... e6 {[%clk 0:02:54.9]} 3. Nf3 {[%clk 0:03:01.4]} 3... d5 {[%clk 0:02:53.4]}
4. g3 {[%clk 0:02:56.8]} 4... Be7 {[%clk 0:02:43.9]} 5. Bg2 {[%clk 0:02:56.4]}
5... O-O {[%clk 0:02:44.4]} 6. O-O {[%clk 0:02:56.9]} 6... dxc4 {[%clk
0:02:44.9]} 7. Ne5 {[%clk 0:02:57]} 7... Nc6 {[%clk 0:02:43.2]} 8. Bxc6 {[%clk
0:02:57.4]} 8... bxc6 {[%clk 0:02:44.1]} 9. Nxc6 {[%clk 0:02:58.3]} 9... Qe8
{[%clk 0:02:44.3]} 10. Nxe7+ {[%clk 0:02:59.2]} 10... Qxe7 {[%clk 0:02:45.2]}
11. Nc3 {[%clk 0:03:00]} 11... Rd8 {[%clk 0:02:43.9]} 12. Qa4 {[%clk 0:02:59.3]}
12... Rxd4 {[%clk 0:02:41.4]} 13. Be3 {[%clk 0:02:59.2]} 13... Rd8 {[%clk
0:02:33.7]} 14. Qxc4 {[%clk 0:02:32]} 14... e5 {[%clk 0:02:28.4]} 15. Qc5 {[%clk
0:02:17]} 15... Qxc5 {[%clk 0:02:12.1]} 16. Bxc5 {[%clk 0:02:17.9]} 16... Bf5
{[%clk 0:01:58.8]} 17. Rfd1 {[%clk 0:02:04.2]} 17... a6 {[%clk 0:01:58.4]} 18.
f3 {[%clk 0:01:59.5]} 18... e4 {[%clk 0:01:30.6]} 19. Kf2 {[%clk 0:01:55.7]}
19... h5 {[%clk 0:01:26]} 20. Rac1 {[%clk 0:01:50.3]} 20... exf3 {[%clk
0:01:07.2]} 1/2-1/2

[Event "*** Titled Tuesday Blitz"]
[Site "Chess.com"]
[Date "2020.04.07"]
[Round "9"]
[White "DishonorOnYourCow"]
[Black "aloe_normansen"]
[Result "1-0"]
[WhiteElo "2336"]
[BlackElo "2185"]
[TimeControl "180+1"]
[EndTime "14:44:10 PDT"]
[Termination "DishonorOnYourCow won by resignation"]

1. d4 {[%clk 0:03:00.9]} 1... Nf6 {[%clk 0:02:59.7]} 2. c4 {[%clk 0:02:59.8]}
2... g6 {[%clk 0:02:59.9]} 3. Nc3 {[%clk 0:02:59.3]} 3... Bg7 {[%clk 0:03:00]}
4. e4 {[%clk 0:02:58.8]} 4... O-O {[%clk 0:03:00]} 5. f4 {[%clk 0:02:58.1]} 5...
d6 {[%clk 0:02:59.3]} 6. Nf3 {[%clk 0:02:57]} 6... c5 {[%clk 0:02:54.4]} 7. d5
{[%clk 0:02:54.6]} 7... e6 {[%clk 0:02:53.5]} 8. dxe6 {[%clk 0:02:53.6]} 8...
Bxe6 {[%clk 0:02:52.4]} 9. Bd3 {[%clk 0:02:54.5]} 9... Nc6 {[%clk 0:02:49.8]}
10. f5 {[%clk 0:02:54.2]} 10... Bd7 {[%clk 0:02:44]} 11. O-O {[%clk 0:02:51.8]}
11... a6 {[%clk 0:02:41.6]} 12. Bf4 {[%clk 0:02:47.2]} 12... Ne8 {[%clk
0:02:29.2]} 13. Nd5 {[%clk 0:02:40.9]} 13... Nd4 {[%clk 0:02:20.5]} 14. Nxd4
{[%clk 0:02:22]} 14... Bxd4+ {[%clk 0:02:20.2]} 15. Kh1 {[%clk 0:02:22.7]} 15...
b5 {[%clk 0:02:15.9]} 16. Bh6 {[%clk 0:02:18.6]} 16... Bg7 {[%clk 0:02:11.2]}
17. Bxg7 {[%clk 0:02:14.3]} 17... Nxg7 {[%clk 0:02:09.3]} 18. f6 {[%clk
0:02:15.2]} 18... Ne6 {[%clk 0:02:03]} 19. Qd2 {[%clk 0:02:09.8]} 19... Kh8
{[%clk 0:01:55.7]} 20. Qh6 {[%clk 0:02:06.3]} 20... Bc6 {[%clk 0:01:38.6]} 21.
Rf3 {[%clk 0:01:56.1]} 21... Rg8 {[%clk 0:01:05]} 22. Qxh7+ {[%clk 0:01:52.2]}
1-0

[Event "*** Titled Tuesday Blitz"]
[Site "Chess.com"]
[Date "2020.04.07"]
[Round "9"]
[White "FLamps8"]
[Black "ValentinDragnev"]
[Result "0-1"]
[WhiteElo "2530"]
[BlackElo "2712"]
[TimeControl "180+1"]
[EndTime "14:44:16 PDT"]
[Termination "ValentinDragnev won by resignation"]

1. Nc3 {[%clk 0:02:49.2]} 1... Nf6 {[%clk 0:02:58.8]} 2. e4 {[%clk 0:02:42.3]}
2... e5 {[%clk 0:02:58.3]} 3. Bc4 {[%clk 0:02:38.6]} 3... Be7 {[%clk 0:02:54.2]}
4. Nf3 {[%clk 0:02:34.4]} 4... d6 {[%clk 0:02:54.4]} 5. d4 {[%clk 0:02:33.7]}
5... exd4 {[%clk 0:02:55.3]} 6. Nxd4 {[%clk 0:02:33.7]} 6... O-O {[%clk
0:02:55.7]} 7. O-O {[%clk 0:02:33.6]} 7... Re8 {[%clk 0:02:56.1]} 8. Re1 {[%clk
0:02:33.4]} 8... Bf8 {[%clk 0:02:56.6]} 9. f3 {[%clk 0:02:32.4]} 9... Nbd7
{[%clk 0:02:56.7]} 10. a4 {[%clk 0:02:31.4]} 10... Ne5 {[%clk 0:02:54.3]} 11.
Ba2 {[%clk 0:02:30.9]} 11... a5 {[%clk 0:02:54.3]} 12. Be3 {[%clk 0:02:29.5]}
12... c6 {[%clk 0:02:54.1]} 13. Qd2 {[%clk 0:02:27.9]} 13... Bd7 {[%clk
0:02:50.4]} 14. Rad1 {[%clk 0:02:27.1]} 14... h6 {[%clk 0:02:41.9]} 15. Nf5
{[%clk 0:02:19.3]} 15... Bxf5 {[%clk 0:02:40.8]} 16. exf5 {[%clk 0:02:20.2]}
16... d5 {[%clk 0:02:40.7]} 17. Bd4 {[%clk 0:02:17.3]} 17... Bd6 {[%clk
0:02:40.6]} 18. Kh1 {[%clk 0:02:12.8]} 18... Qc7 {[%clk 0:02:36.9]} 19. Qf2
{[%clk 0:01:42.6]} 19... Re7 {[%clk 0:02:33.2]} 20. Bb6 {[%clk 0:01:39.3]} 20...
Qd7 {[%clk 0:02:32.5]} 21. Bc5 {[%clk 0:01:37.6]} 21... Rae8 {[%clk 0:02:24.7]}
22. Bxd6 {[%clk 0:01:36.6]} 22... Qxd6 {[%clk 0:02:25.6]} 23. Ne4 {[%clk
0:01:30]} 23... Nxe4 {[%clk 0:02:19.1]} 24. Rxe4 {[%clk 0:01:28.6]} 24... Qf6
{[%clk 0:02:06.2]} 25. Rf4 {[%clk 0:01:16.1]} 25... Ng6 {[%clk 0:02:04.7]} 26.
Rfd4 {[%clk 0:01:06.8]} 26... Re2 {[%clk 0:01:58.6]} 27. Qg3 {[%clk 0:01:02.7]}
27... Qxd4 {[%clk 0:01:55]} 0-1

[Event "*** Titled Tuesday Blitz"]
[Site "Chess.com"]
[Date "2020.04.07"]
[Round "9"]
[White "mishanick"]
[Black "nfds"]
[Result "1-0"]
[WhiteElo "2984"]
[BlackElo "2583"]
[TimeControl "180+1"]
[EndTime "14:44:26 PDT"]
[Termination "mishanick won by resignation"]

1. d4 {[%clk 0:02:55.6]} 1... d5 {[%clk 0:02:20.1]} 2. c4 {[%clk 0:02:54.8]}
2... e6 {[%clk 0:02:18.8]} 3. Nf3 {[%clk 0:02:44.8]} 3... Nf6 {[%clk 0:02:18.3]}
4. Nc3 {[%clk 0:02:28]} 4... Be7 {[%clk 0:02:17.5]} 5. g3 {[%clk 0:02:26.3]}
5... Ne4 {[%clk 0:02:16.1]} 6. Bg2 {[%clk 0:02:21.8]} 6... O-O {[%clk 0:02:15]}
7. Qc2 {[%clk 0:02:17.3]} 7... Nxc3 {[%clk 0:02:13.2]} 8. Qxc3 {[%clk
0:02:18.2]} 8... dxc4 {[%clk 0:02:06.2]} 9. O-O {[%clk 0:02:13.2]} 9... Nd7
{[%clk 0:02:00.7]} 10. Qxc4 {[%clk 0:02:12.4]} 10... c5 {[%clk 0:01:56.2]} 11.
Rd1 {[%clk 0:02:10.6]} 11... cxd4 {[%clk 0:01:52.2]} 12. Nxd4 {[%clk 0:02:09.8]}
12... Qb6 {[%clk 0:01:28]} 13. Be3 {[%clk 0:01:58.2]} 13... Ne5 {[%clk
0:01:24.2]} 14. Qc3 {[%clk 0:01:55.3]} 14... Qb4 {[%clk 0:01:02.5]} 15. Qxb4
{[%clk 0:01:45.4]} 15... Bxb4 {[%clk 0:01:01.8]} 16. Rac1 {[%clk 0:01:46.3]}
16... Ba5 {[%clk 0:00:48.9]} 17. Rc5 {[%clk 0:01:44.2]} 1-0

[Event "*** Titled Tuesday Blitz"]
[Site "Chess.com"]
[Date "2020.04.07"]
[Round "9"]
[White "Alvarov79"]
[Black "MikeSailer"]
[Result "0-1"]
[WhiteElo "2273"]
[BlackElo "2076"]
[TimeControl "180+1"]
[EndTime "14:44:36 PDT"]
[Termination "MikeSailer won by resignation"]

1. d4 {[%clk 0:03:00.9]} 1... d5 {[%clk 0:02:59.7]} 2. c4 {[%clk 0:03:00.4]}
2... Bf5 {[%clk 0:02:59.4]} 3. Nc3 {[%clk 0:02:58.6]} 3... e6 {[%clk 0:02:59.5]}
4. Nf3 {[%clk 0:02:58.3]} 4... Nc6 {[%clk 0:02:59.2]} 5. Bf4 {[%clk 0:02:56.4]}
5... Bb4 {[%clk 0:02:58.2]} 6. e3 {[%clk 0:02:56.3]} 6... Nf6 {[%clk 0:02:57.7]}
7. Rc1 {[%clk 0:02:54.9]} 7... O-O {[%clk 0:02:56.9]} 8. Be2 {[%clk 0:02:54.1]}
8... dxc4 {[%clk 0:02:52.1]} 9. Bxc4 {[%clk 0:02:52.3]} 9... Nd5 {[%clk
0:02:51.2]} 10. Bxd5 {[%clk 0:02:20.9]} 10... exd5 {[%clk 0:02:48.5]} 11. O-O
{[%clk 0:02:19.4]} 11... Bg4 {[%clk 0:02:38]} 12. Qb3 {[%clk 0:02:17.5]} 12...
Bxf3 {[%clk 0:02:35.5]} 13. gxf3 {[%clk 0:02:16.2]} 13... Bxc3 {[%clk
0:02:28.8]} 14. bxc3 {[%clk 0:02:12.1]} 14... Na5 {[%clk 0:02:22.4]} 15. Qc2
{[%clk 0:02:05.8]} 15... Nc4 {[%clk 0:02:17.2]} 16. Bg3 {[%clk 0:02:04.6]} 16...
c6 {[%clk 0:02:12.8]} 17. e4 {[%clk 0:02:04.2]} 17... f5 {[%clk 0:02:02.2]} 18.
exf5 {[%clk 0:02:00.4]} 18... Qg5 {[%clk 0:01:57.7]} 19. Rfe1 {[%clk 0:01:55.2]}
19... Rxf5 {[%clk 0:01:50.1]} 20. Qe2 {[%clk 0:01:51.2]} 20... Raf8 {[%clk
0:01:42.7]} 21. Qe6+ {[%clk 0:01:49.3]} 21... Kh8 {[%clk 0:01:41.8]} 22. Rb1
{[%clk 0:01:46.5]} 22... Nd2 {[%clk 0:01:24]} 23. Rxb7 {[%clk 0:01:43.4]} 23...
Nxf3+ {[%clk 0:01:22.9]} 24. Kf1 {[%clk 0:01:43.6]} 24... Nxe1 {[%clk
0:01:13.8]} 25. Qxe1 {[%clk 0:01:42.2]} 25... h5 {[%clk 0:00:59.4]} 26. h4
{[%clk 0:01:35.6]} 26... Qxg3 {[%clk 0:00:53.4]} 0-1

[Event "*** Titled Tuesday Blitz"]
[Site "Chess.com"]
[Date "2020.04.07"]
[Round "9"]
[White "VeraLevel"]
[Black "Philosopherrr"]
[Result "1-0"]
[WhiteElo "2737"]
[BlackElo "2448"]
[TimeControl "180+1"]
[EndTime "14:44:53 PDT"]
[Termination "VeraLevel won by resignation"]

1. d4 {[%clk 0:03:00.9]} 1... Nf6 {[%clk 0:02:58.6]} 2. c4 {[%clk 0:02:57.5]}
2... e6 {[%clk 0:02:58.4]} 3. Nc3 {[%clk 0:02:58.1]} 3... c5 {[%clk 0:02:57]} 4.
d5 {[%clk 0:02:58.1]} 4... exd5 {[%clk 0:02:57.2]} 5. cxd5 {[%clk 0:02:59]} 5...
d6 {[%clk 0:02:57.8]} 6. e4 {[%clk 0:02:59.5]} 6... g6 {[%clk 0:02:58.3]} 7. h3
{[%clk 0:03:00.1]} 7... Bg7 {[%clk 0:02:58]} 8. Nf3 {[%clk 0:03:00.8]} 8... O-O
{[%clk 0:02:58.1]} 9. Bd3 {[%clk 0:03:01.4]} 9... Re8 {[%clk 0:02:58.5]} 10. O-O
{[%clk 0:03:02]} 10... c4 {[%clk 0:02:59]} 11. Bxc4 {[%clk 0:03:02.2]} 11...
Nxe4 {[%clk 0:02:59.2]} 12. Nxe4 {[%clk 0:03:02.9]} 12... Rxe4 {[%clk
0:02:59.9]} 13. Bg5 {[%clk 0:03:03.4]} 13... Bf6 {[%clk 0:02:59.8]} 14. Bd3
{[%clk 0:03:01.8]} 14... Re8 {[%clk 0:02:59.1]} 15. Bf4 {[%clk 0:02:58.8]} 15...
Bxb2 {[%clk 0:02:47.2]} 16. Rb1 {[%clk 0:02:58.3]} 16... Bf6 {[%clk 0:02:46.9]}
17. Re1 {[%clk 0:02:58.6]} 17... Rf8 {[%clk 0:02:33.6]} 18. Qd2 {[%clk
0:02:36.3]} 18... b6 {[%clk 0:02:25.2]} 19. Bh6 {[%clk 0:02:34]} 19... Bg7
{[%clk 0:02:25]} 20. Rb4 {[%clk 0:02:31.4]} 20... Na6 {[%clk 0:02:02.3]} 21. Rh4
{[%clk 0:02:25.7]} 21... Bf6 {[%clk 0:02:02]} 22. Bxf8 {[%clk 0:02:20.6]} 22...
Bxh4 {[%clk 0:02:01.8]} 23. Bxd6 {[%clk 0:02:16.1]} 23... Qxd6 {[%clk
0:01:47.8]} 24. Re8+ {[%clk 0:02:16]} 24... Kg7 {[%clk 0:01:46.9]} 25. Nxh4
{[%clk 0:02:16.7]} 25... Qf6 {[%clk 0:01:34.2]} 26. Bxa6 {[%clk 0:02:12.6]}
26... Bxa6 {[%clk 0:00:53.5]} 27. Rxa8 {[%clk 0:02:11.6]} 27... Qxh4 {[%clk
0:00:53.8]} 28. d6 {[%clk 0:02:12.1]} 28... Qe4 {[%clk 0:00:40]} 29. Rxa7 {[%clk
0:02:07]} 29... Bb7 {[%clk 0:00:23.1]} 30. Rxb7 {[%clk 0:02:06.8]} 30... Qxb7
{[%clk 0:00:23.6]} 31. d7 {[%clk 0:02:07.4]} 1-0

[Event "*** Titled Tuesday Blitz"]
[Site "Chess.com"]
[Date "2020.04.07"]
[Round "9"]
[White "swimmerchess"]
[Black "Indianlad"]
[Result "1-0"]
[WhiteElo "2856"]
[BlackElo "2996"]
[TimeControl "180+1"]
[EndTime "14:45:06 PDT"]
[Termination "swimmerchess won by resignation"]

1. e4 {[%clk 0:03:00.9]} 1... c6 {[%clk 0:03:00.3]} 2. d4 {[%clk 0:03:00.9]}
2... d5 {[%clk 0:03:00.3]} 3. e5 {[%clk 0:03:01.6]} 3... Bf5 {[%clk 0:03:00.1]}
4. c4 {[%clk 0:03:01.7]} 4... e6 {[%clk 0:03:00]} 5. Nc3 {[%clk 0:03:01.8]} 5...
Ne7 {[%clk 0:03:00.4]} 6. Nge2 {[%clk 0:03:01.8]} 6... dxc4 {[%clk 0:02:59.3]}
7. Ng3 {[%clk 0:03:01.3]} 7... Bg6 {[%clk 0:02:57.5]} 8. Bxc4 {[%clk 0:03:01.3]}
8... Nd7 {[%clk 0:02:58]} 9. O-O {[%clk 0:03:00.3]} 9... Nb6 {[%clk 0:02:56]}
10. Bb3 {[%clk 0:03:00.7]} 10... Ned5 {[%clk 0:02:55.7]} 11. f4 {[%clk
0:02:58.5]} 11... Bb4 {[%clk 0:02:33.1]} 12. Qf3 {[%clk 0:02:56.3]} 12... Ne7
{[%clk 0:02:32.1]} 13. Be3 {[%clk 0:02:53]} 13... Nbd5 {[%clk 0:02:31.6]} 14.
Nxd5 {[%clk 0:02:44.5]} 14... cxd5 {[%clk 0:02:31.7]} 15. Ba4+ {[%clk
0:02:42.7]} 15... Kf8 {[%clk 0:02:31.7]} 16. Rac1 {[%clk 0:02:40.3]} 16... h5
{[%clk 0:02:31.3]} 17. a3 {[%clk 0:02:33.6]} 17... Ba5 {[%clk 0:02:29.9]} 18. b4
{[%clk 0:02:05.2]} 18... Bb6 {[%clk 0:02:29.9]} 19. Bc2 {[%clk 0:02:03.6]} 19...
h4 {[%clk 0:02:21.7]} 20. f5 {[%clk 0:02:03.6]} 20... exf5 {[%clk 0:01:48]} 21.
Nxf5 {[%clk 0:02:03.1]} 21... Bh5 {[%clk 0:01:10.3]} 22. Qf2 {[%clk 0:01:58.4]}
22... h3 {[%clk 0:01:07.8]} 23. g4 {[%clk 0:01:52.8]} 23... Bxg4 {[%clk
0:00:49.6]} 24. Nxg7 {[%clk 0:01:52.8]} 24... f5 {[%clk 0:00:39.7]} 25. Ne6+
{[%clk 0:01:52.5]} 25... Kf7 {[%clk 0:00:39]} 26. Nxd8+ {[%clk 0:01:52.8]} 26...
Raxd8 {[%clk 0:00:39.9]} 27. Bd1 {[%clk 0:01:47]} 27... Rdg8 {[%clk 0:00:39.5]}
28. Kh1 {[%clk 0:01:44.8]} 28... Ke6 {[%clk 0:00:39]} 29. Rg1 {[%clk 0:01:43.3]}
29... a6 {[%clk 0:00:31.2]} 30. Bxg4 {[%clk 0:01:41.5]} 1-0

[Event "*** Titled Tuesday Blitz"]
[Site "Chess.com"]
[Date "2020.04.07"]
[Round "9"]
[White "Gabrielian_Artur"]
[Black "michaelk123"]
[Result "1-0"]
[WhiteElo "2712"]
[BlackElo "2433"]
[TimeControl "180+1"]
[EndTime "14:45:07 PDT"]
[Termination "Gabrielian_Artur won by resignation"]

1. e4 {[%clk 0:03:00.5]} 1... c6 {[%clk 0:03:00.2]} 2. d3 {[%clk 0:02:58.2]}
2... d5 {[%clk 0:03:00.9]} 3. Nd2 {[%clk 0:02:57.8]} 3... g6 {[%clk 0:02:57]} 4.
g3 {[%clk 0:02:57.8]} 4... Bg7 {[%clk 0:02:57.2]} 5. Bg2 {[%clk 0:02:58.2]} 5...
e6 {[%clk 0:02:55.6]} 6. Ne2 {[%clk 0:02:57.7]} 6... Ne7 {[%clk 0:02:56.1]} 7.
O-O {[%clk 0:02:57.4]} 7... O-O {[%clk 0:02:55.7]} 8. f4 {[%clk 0:02:57.5]} 8...
a5 {[%clk 0:02:54.4]} 9. a3 {[%clk 0:02:52.9]} 9... Nd7 {[%clk 0:02:46.5]} 10.
Kh1 {[%clk 0:02:44.6]} 10... b6 {[%clk 0:02:45.3]} 11. Nf3 {[%clk 0:02:35.4]}
11... Bb7 {[%clk 0:02:43.8]} 12. e5 {[%clk 0:02:33.7]} 12... c5 {[%clk
0:02:39.1]} 13. g4 {[%clk 0:02:34]} 13... d4 {[%clk 0:02:39.1]} 14. Ng3 {[%clk
0:02:34.3]} 14... Rc8 {[%clk 0:02:24.6]} 15. Qe2 {[%clk 0:02:32.5]} 15... Qc7
{[%clk 0:02:19.1]} 16. Bd2 {[%clk 0:02:20.3]} 16... Bd5 {[%clk 0:02:16.1]} 17.
Rae1 {[%clk 0:02:18.3]} 17... b5 {[%clk 0:02:09.4]} 18. f5 {[%clk 0:02:07.8]}
18... Bxf3 {[%clk 0:01:55]} 19. Bxf3 {[%clk 0:02:07.3]} 19... exf5 {[%clk
0:01:31.6]} 20. e6 {[%clk 0:02:01.8]} 20... Ne5 {[%clk 0:01:31.7]} 21. gxf5
{[%clk 0:02:00.5]} 21... fxe6 {[%clk 0:01:25.4]} 22. Bf4 {[%clk 0:01:27.7]}
22... N7c6 {[%clk 0:01:25.6]} 23. Qg2 {[%clk 0:01:23.7]} 23... Nxf3 {[%clk
0:01:18.8]} 24. Bxc7 {[%clk 0:01:21.1]} 24... Nxe1 {[%clk 0:01:18.8]} 25. Qxc6
{[%clk 0:01:20.8]} 25... Nxc2 {[%clk 0:01:15.4]} 26. Qxe6+ {[%clk 0:01:18.5]}
26... Kh8 {[%clk 0:01:12.5]} 27. Be5 {[%clk 0:01:18.5]} 27... Rce8 {[%clk
0:01:10.1]} 28. f6 {[%clk 0:01:11.2]} 1-0

[Event "*** Titled Tuesday Blitz"]
[Site "Chess.com"]
[Date "2020.04.07"]
[Round "9"]
[White "MathiasWomacka"]
[Black "JustWatch000"]
[Result "0-1"]
[WhiteElo "2426"]
[BlackElo "2590"]
[TimeControl "180+1"]
[EndTime "14:45:15 PDT"]
[Termination "JustWatch000 won on time"]

1. e4 {[%clk 0:03:00.3]} 1... c5 {[%clk 0:02:58.1]} 2. Nf3 {[%clk 0:02:59.4]}
2... e6 {[%clk 0:02:58.3]} 3. d4 {[%clk 0:02:58.9]} 3... cxd4 {[%clk 0:02:59.2]}
4. Nxd4 {[%clk 0:02:59.5]} 4... Nf6 {[%clk 0:02:59.8]} 5. Nc3 {[%clk 0:02:59.2]}
5... Nc6 {[%clk 0:03:00.3]} 6. Nxc6 {[%clk 0:02:58]} 6... bxc6 {[%clk
0:03:01.2]} 7. e5 {[%clk 0:02:58.3]} 7... Nd5 {[%clk 0:03:00.9]} 8. Ne4 {[%clk
0:02:58.8]} 8... Qb6 {[%clk 0:02:59.4]} 9. c4 {[%clk 0:02:54.3]} 9... Bb4+
{[%clk 0:02:57.6]} 10. Bd2 {[%clk 0:02:53]} 10... f5 {[%clk 0:02:50.2]} 11. cxd5
{[%clk 0:02:22.1]} 11... fxe4 {[%clk 0:02:46.7]} 12. dxe6 {[%clk 0:02:21.9]}
12... O-O {[%clk 0:02:43.1]} 13. Qe2 {[%clk 0:01:41.8]} 13... Ba6 {[%clk
0:02:04.8]} 14. Qe3 {[%clk 0:01:37.8]} 14... Bc5 {[%clk 0:02:00.4]} 15. Qxe4
{[%clk 0:01:29.9]} 15... Bxf2+ {[%clk 0:01:45.6]} 16. Kd1 {[%clk 0:01:29.6]}
16... dxe6 {[%clk 0:01:43.7]} 17. Bxa6 {[%clk 0:01:12.7]} 17... Qxa6 {[%clk
0:01:44.6]} 18. Kc2 {[%clk 0:00:56.7]} 18... Rad8 {[%clk 0:01:43.6]} 19. Rhf1
{[%clk 0:00:48.2]} 19... Rd4 {[%clk 0:01:42]} 0-1

[Event "*** Titled Tuesday Blitz"]
[Site "Chess.com"]
[Date "2020.04.07"]
[Round "9"]
[White "2165149677570"]
[Black "politeplayer"]
[Result "1-0"]
[WhiteElo "2366"]
[BlackElo "2203"]
[TimeControl "180+1"]
[EndTime "14:45:23 PDT"]
[Termination "2165149677570 won by resignation"]

1. d4 {[%clk 0:03:00.9]} 1... Nf6 {[%clk 0:02:58.7]} 2. c4 {[%clk 0:03:01.2]}
2... c5 {[%clk 0:02:59.2]} 3. d5 {[%clk 0:03:01.4]} 3... e6 {[%clk 0:02:59.8]}
4. Nc3 {[%clk 0:03:01.9]} 4... exd5 {[%clk 0:02:59.9]} 5. cxd5 {[%clk
0:03:02.8]} 5... d6 {[%clk 0:03:00.5]} 6. e4 {[%clk 0:03:02.8]} 6... g6 {[%clk
0:03:00.6]} 7. f4 {[%clk 0:03:02.3]} 7... Bg7 {[%clk 0:03:00.3]} 8. Bb5+ {[%clk
0:03:02.8]} 8... Nfd7 {[%clk 0:02:59.7]} 9. Nf3 {[%clk 0:03:00.4]} 9... a6
{[%clk 0:02:55.3]} 10. Bxd7+ {[%clk 0:03:00.7]} 10... Nxd7 {[%clk 0:02:43.5]}
11. O-O {[%clk 0:03:00.5]} 11... O-O {[%clk 0:02:43.2]} 12. f5 {[%clk
0:03:01.2]} 12... Ne5 {[%clk 0:02:40.7]} 13. Bf4 {[%clk 0:02:56.7]} 13... Nxf3+
{[%clk 0:02:22.2]} 14. Qxf3 {[%clk 0:02:53.9]} 14... b5 {[%clk 0:02:18.5]} 15.
Qg3 {[%clk 0:02:49.3]} 15... b4 {[%clk 0:02:11.3]} 16. Ne2 {[%clk 0:02:45.6]}
16... Bxb2 {[%clk 0:02:05.9]} 17. Rab1 {[%clk 0:02:45.8]} 17... Be5 {[%clk
0:01:37.2]} 18. Bxe5 {[%clk 0:02:43.8]} 18... dxe5 {[%clk 0:01:36.9]} 19. f6
{[%clk 0:02:44.7]} 19... Re8 {[%clk 0:01:26.1]} 20. Qg5 {[%clk 0:02:37]} 20...
Qd6 {[%clk 0:01:23.4]} 21. Rbc1 {[%clk 0:02:35]} 21... Kh8 {[%clk 0:01:07.7]}
22. Qe3 {[%clk 0:02:29.3]} 22... Bg4 {[%clk 0:00:57.9]} 23. Ng3 {[%clk
0:02:14.4]} 23... Rec8 {[%clk 0:00:51.2]} 24. Qh6 {[%clk 0:02:10.4]} 24... Qf8
{[%clk 0:00:49.4]} 25. Qxf8+ {[%clk 0:02:10.2]} 25... Rxf8 {[%clk 0:00:48.5]}
26. Rxc5 {[%clk 0:02:11.1]} 26... Rfc8 {[%clk 0:00:45.5]} 27. Rfc1 {[%clk
0:02:11.4]} 27... Rxc5 {[%clk 0:00:44.3]} 28. Rxc5 {[%clk 0:02:12.3]} 28... Rc8
{[%clk 0:00:44.1]} 29. Rxc8+ {[%clk 0:02:00.1]} 29... Bxc8 {[%clk 0:00:42.9]}
30. Kf2 {[%clk 0:02:01]} 30... a5 {[%clk 0:00:39.4]} 31. Ke3 {[%clk 0:02:01.1]}
31... a4 {[%clk 0:00:39.8]} 32. Kd2 {[%clk 0:01:59.7]} 32... Ba6 {[%clk
0:00:31.6]} 33. Ne2 {[%clk 0:01:52.6]} 33... Bxe2 {[%clk 0:00:21.7]} 34. Kxe2
{[%clk 0:01:53.5]} 34... Kg8 {[%clk 0:00:21.6]} 35. d6 {[%clk 0:01:54.4]} 35...
Kf8 {[%clk 0:00:21.4]} 36. d7 {[%clk 0:01:55.3]} 1-0